[Event "*** SCC Grand Prix: Titled Tuesday Blitz"]
[Site "Chess.com"]
[Date "2020.08.11"]
[Round "7"]
[White "GalperinPlaton"]
[Black "RaunakSadhwani2005"]
[Result "0-1"]
[WhiteElo "2612"]
[BlackElo "2941"]
[TimeControl "180+1"]
[EndTime "11:19:47 PDT"]
[Termination "RaunakSadhwani2005 won on time"]

1. c4 {[%clk 0:03:00.9]} 1... f5 {[%clk 0:02:59.7]} 2. d4 {[%clk 0:02:54.7]}
2... Nf6 {[%clk 0:02:59.7]} 3. Nc3 {[%clk 0:02:55.6]} 3... d6 {[%clk 0:03:00.1]}
4. Bg5 {[%clk 0:02:55.3]} 4... Nbd7 {[%clk 0:03:00]} 5. e3 {[%clk 0:02:54.6]}
5... g6 {[%clk 0:03:00]} 6. h4 {[%clk 0:02:53]} 6... h6 {[%clk 0:02:58.1]} 7.
Bxf6 {[%clk 0:02:51.3]} 7... Nxf6 {[%clk 0:02:59]} 8. Bd3 {[%clk 0:02:50.6]}
8... Bg7 {[%clk 0:02:58.6]} 9. Qc2 {[%clk 0:02:50.6]} 9... e6 {[%clk 0:02:57.2]}
10. Nge2 {[%clk 0:02:49.3]} 10... e5 {[%clk 0:02:54.1]} 11. c5 {[%clk 0:02:48]}
11... e4 {[%clk 0:02:53.4]} 12. Bb5+ {[%clk 0:02:35.7]} 12... c6 {[%clk
0:02:53.5]} 13. Ba4 {[%clk 0:02:36.2]} 13... d5 {[%clk 0:02:53.4]} 14. b4 {[%clk
0:02:35.8]} 14... a6 {[%clk 0:02:47.9]} 15. Bb3 {[%clk 0:02:33.7]} 15... Be6
{[%clk 0:02:44.7]} 16. a4 {[%clk 0:02:29.9]} 16... Kf7 {[%clk 0:02:44.5]} 17.
Nf4 {[%clk 0:02:29.8]} 17... g5 {[%clk 0:02:36.6]} 18. Nxe6 {[%clk 0:02:26.9]}
18... Kxe6 {[%clk 0:02:37.5]} 19. g4 {[%clk 0:02:24.7]} 19... Ke7 {[%clk
0:02:07]} 20. gxf5 {[%clk 0:01:46.4]} 20... g4 {[%clk 0:02:07.9]} 21. Ne2 {[%clk
0:01:42.4]} 21... Qd7 {[%clk 0:02:08]} 22. Ng3 {[%clk 0:01:42.7]} 22... h5
{[%clk 0:02:08.3]} 23. Kd2 {[%clk 0:01:36.3]} 23... Rhc8 {[%clk 0:01:55.9]} 24.
Qc3 {[%clk 0:01:27.6]} 24... Bf8 {[%clk 0:01:54.2]} 25. b5 {[%clk 0:01:25.9]}
25... Ke8 {[%clk 0:01:50.7]} 26. b6 {[%clk 0:00:59.8]} 26... Bh6 {[%clk
0:01:49]} 27. Kc2 {[%clk 0:00:57.9]} 27... Ke7 {[%clk 0:01:47.6]} 28. Kb2 {[%clk
0:00:55.2]} 28... Rg8 {[%clk 0:01:47.5]} 29. Bc2 {[%clk 0:00:54.3]} 29... Raf8
{[%clk 0:01:46.9]} 30. Rae1 {[%clk 0:00:51.7]} 30... Kd8 {[%clk 0:01:47.2]} 31.
Bd1 {[%clk 0:00:48.2]} 31... Kc8 {[%clk 0:01:47.3]} 32. Be2 {[%clk 0:00:48.5]}
32... Kd8 {[%clk 0:01:42]} 33. Rb1 {[%clk 0:00:43.7]} 33... Ke7 {[%clk
0:01:42.4]} 34. Kc2 {[%clk 0:00:42.8]} 34... Ra8 {[%clk 0:01:40.2]} 35. Rb2
{[%clk 0:00:38.1]} 35... Kf7 {[%clk 0:01:38.5]} 36. Qa5 {[%clk 0:00:31.7]} 36...
Bf8 {[%clk 0:01:36.4]} 37. Rhb1 {[%clk 0:00:31.7]} 37... Be7 {[%clk 0:01:35]}
38. Qe1 {[%clk 0:00:28.7]} 38... Rh8 {[%clk 0:01:34]} 39. Rb3 {[%clk 0:00:27.4]}
39... Ne8 {[%clk 0:01:32.8]} 40. Qh1 {[%clk 0:00:28.3]} 40... Ng7 {[%clk
0:01:32.6]} 41. Rg1 {[%clk 0:00:07.9]} 41... Bf6 {[%clk 0:01:22.1]} 42. Rbb1
{[%clk 0:00:02.8]} 42... Qe7 {[%clk 0:01:22.4]} 43. Qg2 {[%clk 0:00:02.3]} 43...
Rag8 {[%clk 0:01:18]} 44. Rh1 {[%clk 0:00:03.2]} 44... Bxh4 {[%clk 0:01:16.1]}
45. Rh2 {[%clk 0:00:02]} 45... Bf6 {[%clk 0:01:12.3]} 46. Rbh1 {[%clk
0:00:01.7]} 46... h4 {[%clk 0:01:11.5]} 47. Bxg4 {[%clk 0:00:02.2]} 47... Ne8
{[%clk 0:01:10.2]} 48. Ne2 {[%clk 0:00:02.1]} 48... Kf8 {[%clk 0:01:08.5]} 49.
f3 {[%clk 0:00:02.6]} 49... Qg7 {[%clk 0:01:03.9]} 50. Rg1 {[%clk 0:00:03]}
50... exf3 {[%clk 0:00:58.8]} 51. Qxf3 {[%clk 0:00:03.9]} 51... Bg5 {[%clk
0:00:55.7]} 52. Nf4 {[%clk 0:00:02.1]} 52... Bxf4 {[%clk 0:00:56]} 53. Qxf4
{[%clk 0:00:03]} 53... Qe7 {[%clk 0:00:56.4]} 54. Rhg2 {[%clk 0:00:01.6]} 54...
h3 {[%clk 0:00:55.7]} 55. Bxh3 {[%clk 0:00:01.6]} 55... Rxg2+ {[%clk 0:00:53.6]}
56. Bxg2 {[%clk 0:00:02.5]} 56... Rg8 {[%clk 0:00:54.1]} 57. Qf2 {[%clk
0:00:02]} 57... Qg5 {[%clk 0:00:50.7]} 58. Kd2 {[%clk 0:00:02.4]} 58... Nf6
{[%clk 0:00:50.5]} 59. Ke2 {[%clk 0:00:02.1]} 59... Ne4 {[%clk 0:00:40.6]} 60.
Qf4 {[%clk 0:00:01.8]} 60... Qe7 {[%clk 0:00:26.5]} 61. Qb8+ {[%clk 0:00:01.3]}
61... Kf7 {[%clk 0:00:25.9]} 62. Qxg8+ {[%clk 0:00:01.8]} 62... Kxg8 {[%clk
0:00:25.3]} 63. Bxe4+ {[%clk 0:00:02.7]} 63... Kf8 {[%clk 0:00:25.7]} 64. Bf3
{[%clk 0:00:03.2]} 64... Qh4 {[%clk 0:00:24.1]} 65. Rg4 {[%clk 0:00:03.1]} 65...
Qh2+ {[%clk 0:00:24.1]} 66. Rg2 {[%clk 0:00:03.5]} 66... Qh3 {[%clk 0:00:21.7]}
67. Rg4 {[%clk 0:00:03.4]} 67... Qh7 {[%clk 0:00:20.2]} 68. Rg6 {[%clk
0:00:02.7]} 68... Qh2+ {[%clk 0:00:16.4]} 69. Rg2 {[%clk 0:00:03.1]} 69... Qh3
{[%clk 0:00:16]} 70. Rg4 {[%clk 0:00:03.1]} 70... Kf7 {[%clk 0:00:16.6]} 71. Rf4
{[%clk 0:00:02.3]} 71... Qh2+ {[%clk 0:00:16.6]} 72. Kd3 {[%clk 0:00:02.7]}
72... Kf6 {[%clk 0:00:17]} 73. Rg4 {[%clk 0:00:01.7]} 73... Qa2 {[%clk
0:00:15.4]} 74. Rg6+ {[%clk 0:00:01.6]} 74... Kf7 {[%clk 0:00:10.2]} 75. Bh5
{[%clk 0:00:01.4]} 75... Qb3+ {[%clk 0:00:10.5]} 76. Ke2 {[%clk 0:00:01.8]}
76... Qc2+ {[%clk 0:00:11]} 77. Kf1 {[%clk 0:00:01.3]} 77... Qxf5+ {[%clk
0:00:10.9]} 0-1

[Event "*** SCC Grand Prix: Titled Tuesday Blitz"]
[Site "Chess.com"]
[Date "2020.08.11"]
[Round "7"]
[White "amintabatabaei"]
[Black "GadimbayliA"]
[Result "0-1"]
[WhiteElo "3023"]
[BlackElo "2875"]
[TimeControl "180+1"]
[EndTime "11:19:53 PDT"]
[Termination "GadimbayliA won by resignation"]

1. e4 {[%clk 0:03:00.9]} 1... e5 {[%clk 0:02:59.4]} 2. Nf3 {[%clk 0:02:58.7]}
2... d5 {[%clk 0:02:59.2]} 3. Nxe5 {[%clk 0:02:43.7]} 3... Bd6 {[%clk
0:02:58.8]} 4. d4 {[%clk 0:02:38.1]} 4... dxe4 {[%clk 0:02:58.4]} 5. Nc4 {[%clk
0:02:31.3]} 5... Nf6 {[%clk 0:02:57.5]} 6. Nxd6+ {[%clk 0:02:30.7]} 6... Qxd6
{[%clk 0:02:57.5]} 7. Be2 {[%clk 0:02:31.4]} 7... O-O {[%clk 0:02:57.5]} 8. O-O
{[%clk 0:02:31.9]} 8... Nc6 {[%clk 0:02:57.7]} 9. c3 {[%clk 0:02:32.2]} 9... Bf5
{[%clk 0:02:57.1]} 10. Nd2 {[%clk 0:02:30.3]} 10... Rfe8 {[%clk 0:02:53.8]} 11.
Nc4 {[%clk 0:02:30.5]} 11... Qd7 {[%clk 0:02:53.2]} 12. Bg5 {[%clk 0:02:29.6]}
12... Nd5 {[%clk 0:02:51.6]} 13. Ne3 {[%clk 0:02:29.2]} 13... h6 {[%clk
0:02:42.3]} 14. Bh4 {[%clk 0:02:21.7]} 14... Nf4 {[%clk 0:02:39.3]} 15. Bg3
{[%clk 0:02:21.6]} 15... Nxe2+ {[%clk 0:02:36.2]} 16. Qxe2 {[%clk 0:02:22.5]}
16... Bg6 {[%clk 0:02:32]} 17. Rad1 {[%clk 0:02:17.7]} 17... Ne7 {[%clk
0:02:28]} 18. d5 {[%clk 0:02:15.4]} 18... Nf5 {[%clk 0:02:27.6]} 19. Nxf5 {[%clk
0:02:05.1]} 19... Qxf5 {[%clk 0:02:28.5]} 20. Qe3 {[%clk 0:02:04.1]} 20... Rad8
{[%clk 0:02:23.2]} 21. c4 {[%clk 0:02:03.9]} 21... Rd7 {[%clk 0:02:16.5]} 22.
Rfe1 {[%clk 0:02:01.8]} 22... b6 {[%clk 0:02:12.7]} 23. Rd4 {[%clk 0:01:59.9]}
23... Qh5 {[%clk 0:02:07.4]} 24. b4 {[%clk 0:01:56.9]} 24... Kh7 {[%clk
0:01:56.5]} 25. h3 {[%clk 0:01:56.8]} 25... Kg8 {[%clk 0:01:53.5]} 26. Red1
{[%clk 0:01:55.2]} 26... Red8 {[%clk 0:01:48.8]} 27. a4 {[%clk 0:01:50.5]} 27...
Kh7 {[%clk 0:01:39.4]} 28. R1d2 {[%clk 0:01:50.1]} 28... Kg8 {[%clk 0:01:34.6]}
29. Kh2 {[%clk 0:01:50.3]} 29... Kh7 {[%clk 0:01:34]} 30. Bf4 {[%clk 0:01:49.6]}
30... Qf5 {[%clk 0:01:32]} 31. Qg3 {[%clk 0:01:48.7]} 31... c6 {[%clk
0:01:25.3]} 32. Qg4 {[%clk 0:01:08.8]} 32... Qxg4 {[%clk 0:01:07.7]} 33. hxg4
{[%clk 0:01:09.7]} 33... c5 {[%clk 0:01:08.2]} 34. bxc5 {[%clk 0:00:33.1]} 34...
bxc5 {[%clk 0:01:09.1]} 35. Kg3 {[%clk 0:00:18.4]} 35... cxd4 {[%clk 0:01:07.1]}
36. Rxd4 {[%clk 0:00:19.3]} 36... f6 {[%clk 0:01:07.6]} 37. Bd2 {[%clk
0:00:18.5]} 37... Rc8 {[%clk 0:01:03.8]} 38. Ba5 {[%clk 0:00:17.9]} 38... Rb7
{[%clk 0:00:29.3]} 39. d6 {[%clk 0:00:14.1]} 39... Be8 {[%clk 0:00:27.6]} 40.
Rxe4 {[%clk 0:00:13.3]} 40... Bxa4 {[%clk 0:00:27.4]} 41. c5 {[%clk 0:00:09.5]}
41... Bc6 {[%clk 0:00:24.1]} 42. Rd4 {[%clk 0:00:05.8]} 42... Rd7 {[%clk
0:00:19.3]} 43. f3 {[%clk 0:00:05.1]} 43... Rb8 {[%clk 0:00:19.3]} 44. Kf4
{[%clk 0:00:04.4]} 44... Kg6 {[%clk 0:00:18.7]} 45. Bb4 {[%clk 0:00:04]} 45...
Rb5 {[%clk 0:00:18.9]} 46. Ba3 {[%clk 0:00:04.2]} 46... Rb3 {[%clk 0:00:18.8]}
47. Bb4 {[%clk 0:00:04.3]} 47... Kf7 {[%clk 0:00:18.6]} 48. Kf5 {[%clk
0:00:04.1]} 48... g6+ {[%clk 0:00:17.3]} 49. Kf4 {[%clk 0:00:04.6]} 49... Ke6
{[%clk 0:00:16.8]} 50. Ba5 {[%clk 0:00:03.7]} 50... g5+ {[%clk 0:00:17]} 51. Kg3
{[%clk 0:00:03.4]} 51... Rb5 {[%clk 0:00:16.8]} 52. Bb4 {[%clk 0:00:03.7]} 52...
a5 {[%clk 0:00:15.3]} 53. Ba3 {[%clk 0:00:03.8]} 53... Rb3 {[%clk 0:00:15.1]}
54. Bc1 {[%clk 0:00:04]} 54... Rc3 {[%clk 0:00:14.9]} 55. Rd1 {[%clk 0:00:04.3]}
55... Rxc5 {[%clk 0:00:14.1]} 56. Ba3 {[%clk 0:00:03.8]} 56... Rd5 {[%clk
0:00:14]} 57. Re1+ {[%clk 0:00:04.1]} 57... Kf7 {[%clk 0:00:14.1]} 58. Rh1
{[%clk 0:00:03.4]} 58... Kg6 {[%clk 0:00:13.7]} 59. Rc1 {[%clk 0:00:04]} 59...
R5xd6 {[%clk 0:00:13.1]} 60. Bxd6 {[%clk 0:00:04.2]} 60... Rxd6 {[%clk 0:00:14]}
61. Rc5 {[%clk 0:00:05.1]} 61... a4 {[%clk 0:00:14]} 62. Ra5 {[%clk 0:00:05.9]}
62... Rd8 {[%clk 0:00:14.3]} 63. Ra6 {[%clk 0:00:06.1]} 63... Rc8 {[%clk
0:00:13.9]} 64. Kf2 {[%clk 0:00:05]} 64... Kf7 {[%clk 0:00:14.3]} 65. g3 {[%clk
0:00:05.2]} 65... Ke6 {[%clk 0:00:14.2]} 66. f4 {[%clk 0:00:05.8]} 66... Kd6
{[%clk 0:00:14.6]} 67. Ke3 {[%clk 0:00:04.7]} 67... Ra8 {[%clk 0:00:14.5]} 68.
Rb6 {[%clk 0:00:05.1]} 68... a3 {[%clk 0:00:14.8]} 69. Rb1 {[%clk 0:00:06]}
69... a2 {[%clk 0:00:15.1]} 70. Ra1 {[%clk 0:00:06.9]} 70... Bd5 {[%clk
0:00:15.8]} 71. Kd4 {[%clk 0:00:07.2]} 71... Ra4+ {[%clk 0:00:15.5]} 72. Kc3
{[%clk 0:00:07.5]} 72... gxf4 {[%clk 0:00:15.9]} 73. gxf4 {[%clk 0:00:06.3]}
73... Kc5 {[%clk 0:00:16.5]} 74. f5 {[%clk 0:00:04.2]} 74... Rxg4 {[%clk
0:00:15]} 75. Kb2 {[%clk 0:00:04.8]} 75... Kb4 {[%clk 0:00:14.2]} 76. Rf1 {[%clk
0:00:03.8]} 76... h5 {[%clk 0:00:11.1]} 77. Re1 {[%clk 0:00:01.8]} 77... h4
{[%clk 0:00:11.3]} 78. Ka1 {[%clk 0:00:02]} 78... h3 {[%clk 0:00:11.3]} 79. Rd1
{[%clk 0:00:01.9]} 79... h2 {[%clk 0:00:10.6]} 80. Rc1 {[%clk 0:00:02.4]} 80...
Rg1 {[%clk 0:00:09.9]} 81. Kb2 {[%clk 0:00:02.8]} 81... Rxc1 {[%clk 0:00:10]}
82. Kxc1 {[%clk 0:00:02.8]} 82... a1=Q+ {[%clk 0:00:10.9]} 0-1

[Event "*** SCC Grand Prix: Titled Tuesday Blitz"]
[Site "Chess.com"]
[Date "2020.08.11"]
[Round "7"]
[White "Murad_Ibrahimli"]
[Black "Shield12"]
[Result "1/2-1/2"]
[WhiteElo "2701"]
[BlackElo "2851"]
[TimeControl "180+1"]
[EndTime "11:20:26 PDT"]
[Termination "Game drawn by repetition"]

1. d4 {[%clk 0:03:00.9]} 1... Nf6 {[%clk 0:03:00.1]} 2. c4 {[%clk 0:02:57.3]}
2... e6 {[%clk 0:03:00.3]} 3. Nf3 {[%clk 0:02:50.8]} 3... d5 {[%clk 0:03:00.3]}
4. Nc3 {[%clk 0:02:49.1]} 4... Bb4 {[%clk 0:03:00.4]} 5. cxd5 {[%clk 0:02:46.9]}
5... exd5 {[%clk 0:03:01.3]} 6. Bg5 {[%clk 0:02:44.8]} 6... h6 {[%clk
0:03:01.5]} 7. Bxf6 {[%clk 0:02:42.8]} 7... Qxf6 {[%clk 0:03:02.4]} 8. Qa4+
{[%clk 0:02:41.5]} 8... Nc6 {[%clk 0:03:02.4]} 9. e3 {[%clk 0:02:41.6]} 9... O-O
{[%clk 0:03:02.3]} 10. Be2 {[%clk 0:02:40.8]} 10... Be6 {[%clk 0:03:01.4]} 11.
O-O {[%clk 0:02:40.1]} 11... a6 {[%clk 0:03:01.7]} 12. Rac1 {[%clk 0:02:38.8]}
12... Bd6 {[%clk 0:03:01.3]} 13. Qd1 {[%clk 0:02:35.8]} 13... Na7 {[%clk
0:02:57]} 14. Na4 {[%clk 0:02:34.2]} 14... c6 {[%clk 0:02:52.2]} 15. Nc5 {[%clk
0:02:32.9]} 15... Qe7 {[%clk 0:02:47.3]} 16. Ne1 {[%clk 0:02:15.7]} 16... Bf5
{[%clk 0:02:45.5]} 17. Bd3 {[%clk 0:02:12.5]} 17... Bc8 {[%clk 0:02:45.2]} 18.
Qf3 {[%clk 0:01:50.9]} 18... Re8 {[%clk 0:02:43.1]} 19. Bf5 {[%clk 0:01:46.6]}
19... Nb5 {[%clk 0:02:32.3]} 20. Bxc8 {[%clk 0:01:43.8]} 20... Raxc8 {[%clk
0:02:32]} 21. a4 {[%clk 0:01:41.4]} 21... Na7 {[%clk 0:02:18.6]} 22. Ned3 {[%clk
0:01:40.6]} 22... a5 {[%clk 0:02:15.2]} 23. g3 {[%clk 0:01:33.2]} 23... b6
{[%clk 0:02:14.4]} 24. Nb3 {[%clk 0:01:31.2]} 24... Rc7 {[%clk 0:02:14.7]} 25.
Rc2 {[%clk 0:01:29.2]} 25... Rec8 {[%clk 0:02:04.3]} 26. Rfc1 {[%clk 0:01:28.5]}
26... Qd7 {[%clk 0:01:59.8]} 27. Kg2 {[%clk 0:01:26]} 27... g6 {[%clk 0:01:54]}
28. h4 {[%clk 0:01:24.3]} 28... h5 {[%clk 0:01:54]} 29. Nd2 {[%clk 0:01:12.8]}
29... f5 {[%clk 0:01:41.3]} 30. Nb1 {[%clk 0:01:07.2]} 30... Kg7 {[%clk
0:01:38.4]} 31. Nc3 {[%clk 0:01:06.6]} 31... Re8 {[%clk 0:01:26.5]} 32. Ne2
{[%clk 0:00:54.1]} 32... Nc8 {[%clk 0:01:24.7]} 33. Nef4 {[%clk 0:00:45.3]}
33... Na7 {[%clk 0:01:03.9]} 34. Nh3 {[%clk 0:00:43.3]} 34... Qe7 {[%clk
0:01:01.1]} 35. Ng5 {[%clk 0:00:41.1]} 35... Qd7 {[%clk 0:00:50.8]} 36. Qe2
{[%clk 0:00:39]} 36... Qe7 {[%clk 0:00:43.7]} 37. Kg1 {[%clk 0:00:23.8]} 37...
c5 {[%clk 0:00:40.8]} 38. dxc5 {[%clk 0:00:22.2]} 38... bxc5 {[%clk 0:00:41.7]}
39. Qf3 {[%clk 0:00:21.9]} 39... c4 {[%clk 0:00:37.1]} 40. Nf4 {[%clk
0:00:22.1]} 40... Bxf4 {[%clk 0:00:36.8]} 41. Qxf4 {[%clk 0:00:21.1]} 41... Nc6
{[%clk 0:00:29.7]} 42. Rd2 {[%clk 0:00:20.1]} 42... Nb4 {[%clk 0:00:27.7]} 43.
Ne6+ {[%clk 0:00:15.6]} 43... Qxe6 {[%clk 0:00:27.7]} 44. Qxc7+ {[%clk
0:00:16.5]} 44... Re7 {[%clk 0:00:27.6]} 45. Qxa5 {[%clk 0:00:15.8]} 45... Nd3
{[%clk 0:00:26.3]} 46. Rxd3 {[%clk 0:00:16.2]} 46... cxd3 {[%clk 0:00:26.1]} 47.
Qc3+ {[%clk 0:00:16.7]} 47... Qf6 {[%clk 0:00:22.2]} 48. Qxd3 {[%clk 0:00:12.8]}
48... Qxb2 {[%clk 0:00:21.7]} 49. Qc3+ {[%clk 0:00:11.6]} 49... Qxc3 {[%clk
0:00:21]} 50. Rxc3 {[%clk 0:00:12]} 50... Ra7 {[%clk 0:00:20.8]} 51. Ra3 {[%clk
0:00:12.4]} 51... Kf6 {[%clk 0:00:20.2]} 52. Kf1 {[%clk 0:00:12.5]} 52... Ke5
{[%clk 0:00:19.8]} 53. a5 {[%clk 0:00:11]} 53... d4 {[%clk 0:00:19.5]} 54. Ke2
{[%clk 0:00:10.5]} 54... Ra6 {[%clk 0:00:19.2]} 55. exd4+ {[%clk 0:00:10.4]}
55... Kxd4 {[%clk 0:00:20.1]} 56. Kf3 {[%clk 0:00:10.9]} 56... Ke5 {[%clk
0:00:18.2]} 57. Ra4 {[%clk 0:00:11.2]} 57... Ke6 {[%clk 0:00:17.4]} 58. Kf4
{[%clk 0:00:11.2]} 58... Kf6 {[%clk 0:00:17.9]} 59. f3 {[%clk 0:00:11.7]} 59...
Kf7 {[%clk 0:00:16.9]} 60. Kg5 {[%clk 0:00:12]} 60... Kg7 {[%clk 0:00:17.2]} 61.
f4 {[%clk 0:00:11.4]} 61... Kf7 {[%clk 0:00:17.2]} 62. Rb4 {[%clk 0:00:11.1]}
62... Rxa5 {[%clk 0:00:16.1]} 63. Rb7+ {[%clk 0:00:11.6]} 63... Ke6 {[%clk
0:00:16.6]} 64. Kxg6 {[%clk 0:00:11.2]} 64... Ra3 {[%clk 0:00:16.2]} 65. Rb6+
{[%clk 0:00:10.6]} 65... Ke7 {[%clk 0:00:16.1]} 66. Kxf5 {[%clk 0:00:10.7]}
66... Rxg3 {[%clk 0:00:16.2]} 67. Rh6 {[%clk 0:00:10.6]} 67... Kf7 {[%clk
0:00:16.2]} 68. Rh7+ {[%clk 0:00:10.8]} 68... Kg8 {[%clk 0:00:14.5]} 69. Rxh5
{[%clk 0:00:11.1]} 69... Ra3 {[%clk 0:00:15.4]} 70. Kg4 {[%clk 0:00:08.5]} 70...
Ra1 {[%clk 0:00:14.8]} 71. Rb5 {[%clk 0:00:08.5]} 71... Kf7 {[%clk 0:00:15.1]}
72. Rb7+ {[%clk 0:00:07.8]} 72... Kf6 {[%clk 0:00:15.2]} 73. Rb6+ {[%clk
0:00:08.1]} 73... Kf7 {[%clk 0:00:15.5]} 74. Kg5 {[%clk 0:00:08.6]} 74... Rg1+
{[%clk 0:00:14.3]} 75. Kf5 {[%clk 0:00:08.9]} 75... Ra1 {[%clk 0:00:14.4]} 76.
Rb7+ {[%clk 0:00:09.2]} 76... Kg8 {[%clk 0:00:14.4]} 77. Kg5 {[%clk 0:00:09.6]}
77... Rg1+ {[%clk 0:00:13.6]} 78. Kf6 {[%clk 0:00:09.3]} 78... Rg4 {[%clk
0:00:13.8]} 79. f5 {[%clk 0:00:09.4]} 79... Rxh4 {[%clk 0:00:14.1]} 80. Rb8+
{[%clk 0:00:09.5]} 80... Kh7 {[%clk 0:00:14.4]} 81. Kf7 {[%clk 0:00:09.9]} 81...
Ra4 {[%clk 0:00:14.4]} 82. Rb7 {[%clk 0:00:09.7]} 82... Ra6 {[%clk 0:00:13.9]}
83. f6 {[%clk 0:00:09.7]} 83... Rc6 {[%clk 0:00:13.9]} 84. Re7 {[%clk
0:00:05.5]} 84... Rc8 {[%clk 0:00:13.4]} 85. Ke6+ {[%clk 0:00:04]} 85... Kg8
{[%clk 0:00:13.3]} 86. Rg7+ {[%clk 0:00:03.9]} 86... Kf8 {[%clk 0:00:13.3]} 87.
Rh7 {[%clk 0:00:03.9]} 87... Rc6+ {[%clk 0:00:12.9]} 88. Kf5 {[%clk 0:00:03.1]}
88... Rc1 {[%clk 0:00:13.1]} 89. Rh8+ {[%clk 0:00:02.3]} 89... Kf7 {[%clk
0:00:13.5]} 90. Rh7+ {[%clk 0:00:02.7]} 90... Kf8 {[%clk 0:00:14]} 91. Ra7
{[%clk 0:00:03.1]} 91... Rf1+ {[%clk 0:00:13.7]} 92. Ke5 {[%clk 0:00:03.3]}
92... Re1+ {[%clk 0:00:14.1]} 93. Kf5 {[%clk 0:00:03.7]} 93... Rf1+ {[%clk
0:00:14.3]} 94. Ke6 {[%clk 0:00:04.3]} 94... Re1+ {[%clk 0:00:14.2]} 95. Kf5
{[%clk 0:00:04.8]} 95... Rf1+ {[%clk 0:00:14.3]} 1/2-1/2

[Event "*** SCC Grand Prix: Titled Tuesday Blitz"]
[Site "Chess.com"]
[Date "2020.08.11"]
[Round "8"]
[White "tk22h"]
[Black "DACF2905"]
[Result "1-0"]
[WhiteElo "2376"]
[BlackElo "2221"]
[TimeControl "180+1"]
[EndTime "11:28:27 PDT"]
[Termination "tk22h won by resignation"]

1. c4 {[%clk 0:03:00.9]} 1... e5 {[%clk 0:02:55.1]} 2. Nc3 {[%clk 0:03:00.2]}
2... Nf6 {[%clk 0:02:52.8]} 3. Nf3 {[%clk 0:03:00.1]} 3... Nc6 {[%clk 0:02:52]}
4. g3 {[%clk 0:02:59.7]} 4... Bb4 {[%clk 0:02:51.3]} 5. Nd5 {[%clk 0:02:59.1]}
5... Nxd5 {[%clk 0:02:46.3]} 6. cxd5 {[%clk 0:02:59.2]} 6... Ne7 {[%clk
0:02:46.4]} 7. Nxe5 {[%clk 0:02:57.4]} 7... Nxd5 {[%clk 0:02:46.1]} 8. Qb3
{[%clk 0:02:57.3]} 8... d6 {[%clk 0:02:26]} 9. Qxd5 {[%clk 0:02:54.5]} 9... dxe5
{[%clk 0:02:25]} 10. Qb5+ {[%clk 0:02:53.9]} 10... Qd7 {[%clk 0:02:19.2]} 11.
Qxb4 {[%clk 0:02:53.9]} 11... Qd5 {[%clk 0:02:18.4]} 12. e4 {[%clk 0:02:51.5]}
1-0

[Event "*** SCC Grand Prix: Titled Tuesday Blitz"]
[Site "Chess.com"]
[Date "2020.08.11"]
[Round "8"]
[White "AlexSuv"]
[Black "JoliyRoger"]
[Result "0-1"]
[WhiteElo "2484"]
[BlackElo "2355"]
[TimeControl "180+1"]
[EndTime "11:29:37 PDT"]
[Termination "JoliyRoger won by resignation"]

1. d4 {[%clk 0:02:58.6]} 1... Nf6 {[%clk 0:02:59.3]} 2. c4 {[%clk 0:02:57.9]}
2... e6 {[%clk 0:02:59.3]} 3. Nc3 {[%clk 0:02:58.4]} 3... Bb4 {[%clk 0:02:59.7]}
4. e3 {[%clk 0:02:59.1]} 4... c5 {[%clk 0:02:59.8]} 5. Ne2 {[%clk 0:02:58.8]}
5... cxd4 {[%clk 0:03:00.1]} 6. exd4 {[%clk 0:02:59.7]} 6... d5 {[%clk
0:03:00.4]} 7. a3 {[%clk 0:02:59.8]} 7... Bxc3+ {[%clk 0:03:00.1]} 8. Nxc3
{[%clk 0:03:00.7]} 8... Nc6 {[%clk 0:03:00.4]} 9. Be3 {[%clk 0:02:56.3]} 9...
O-O {[%clk 0:02:56.2]} 10. Rc1 {[%clk 0:02:54.8]} 10... dxc4 {[%clk 0:02:41.2]}
11. Bxc4 {[%clk 0:02:55.7]} 11... Ne7 {[%clk 0:02:41.5]} 12. O-O {[%clk
0:02:42.6]} 12... Bd7 {[%clk 0:02:41.9]} 13. Bg5 {[%clk 0:02:40.9]} 13... Bc6
{[%clk 0:02:41.4]} 14. Bxf6 {[%clk 0:02:27.6]} 14... gxf6 {[%clk 0:02:40.7]} 15.
Qg4+ {[%clk 0:02:28.3]} 15... Kh8 {[%clk 0:02:30.4]} 16. Rcd1 {[%clk 0:02:28.8]}
16... Rg8 {[%clk 0:02:18.7]} 17. Qh3 {[%clk 0:02:29]} 17... Rxg2+ {[%clk
0:02:14.7]} 18. Qxg2 {[%clk 0:02:29.9]} 18... Bxg2 {[%clk 0:02:13.9]} 19. Kxg2
{[%clk 0:02:30.8]} 19... Qc7 {[%clk 0:02:10.6]} 20. Be2 {[%clk 0:02:26.4]} 20...
Rg8+ {[%clk 0:02:10.3]} 21. Kh1 {[%clk 0:02:26.9]} 21... Qb6 {[%clk 0:02:00.7]}
22. b4 {[%clk 0:02:23.6]} 22... Qc6+ {[%clk 0:01:58.6]} 0-1

[Event "*** SCC Grand Prix: Titled Tuesday Blitz"]
[Site "Chess.com"]
[Date "2020.08.11"]
[Round "8"]
[White "killer311"]
[Black "FMOlexandrProhorov"]
[Result "1-0"]
[WhiteElo "2446"]
[BlackElo "2146"]
[TimeControl "180+1"]
[EndTime "11:29:53 PDT"]
[Termination "killer311 won by resignation"]

1. d4 {[%clk 0:03:00.9]} 1... g6 {[%clk 0:02:53.4]} 2. c4 {[%clk 0:03:00.7]}
2... Bg7 {[%clk 0:02:52.5]} 3. Nc3 {[%clk 0:03:00.9]} 3... c5 {[%clk 0:02:53.1]}
4. d5 {[%clk 0:03:00.9]} 4... Bxc3+ {[%clk 0:02:52.5]} 5. bxc3 {[%clk
0:03:01.8]} 5... Qa5 {[%clk 0:02:53]} 6. Qc2 {[%clk 0:03:01.1]} 6... f5 {[%clk
0:02:53.9]} 7. g3 {[%clk 0:02:59.7]} 7... Nf6 {[%clk 0:02:54.8]} 8. Bg2 {[%clk
0:03:00]} 8... d6 {[%clk 0:02:55.3]} 9. Nf3 {[%clk 0:02:59.8]} 9... Nbd7 {[%clk
0:02:56.2]} 10. O-O {[%clk 0:02:59.8]} 10... Nb6 {[%clk 0:02:56.3]} 11. Nd2
{[%clk 0:02:54.7]} 11... Bd7 {[%clk 0:02:56.6]} 12. e4 {[%clk 0:02:46.3]} 12...
fxe4 {[%clk 0:02:44.4]} 13. Nxe4 {[%clk 0:02:45.7]} 13... Nxe4 {[%clk 0:02:40]}
14. Qxe4 {[%clk 0:02:37.9]} 14... Qxc3 {[%clk 0:02:22.4]} 15. Bg5 {[%clk
0:02:27.5]} 15... O-O-O {[%clk 0:02:22.3]} 16. Qxe7 {[%clk 0:02:08.9]} 16...
Rde8 {[%clk 0:02:21.3]} 17. Qxd6 {[%clk 0:02:07]} 1-0